fUSD/lending_fUSD_20250524
["ID","MTS","AMOUNT","RATE_DAILY","PERIOD"]
[362266340,1748129447106,-486.40533375,0.000199,2]
[362266341,1748129447115,-1018.21169286,0.000199,2]
[362266342,1748129447125,-2662.18777484,0.000199,2]
[362266343,1748129447135,-503.28319543,0.00019921,2]
[362266344,1748129447144,-563.81431601,0.00019921,2]
[362266345,1748129447153,-151.0,0.00019921,2]
[362266346,1748129447163,-151.0,0.00019921,2]
[362266347,1748129447172,-151.0,0.00019921,2]
[362266348,1748129447182,-500.0,0.00019987,2]
[362266349,1748129447192,-424.58205481,0.0001999,2]
[362266350,1748129447203,-424.58205481,0.0001999,2]
[362266351,1748129447212,-2600.00000001,0.00019994,3]
[362266352,1748129447222,-151.0,0.00019996,2]
[362266353,1748129447231,-151.0,0.00019996,2]
[362266354,1748129447242,-151.0,0.00019996,2]
[362266355,1748129447252,-151.0,0.00019996,2]
[362266356,1748129447261,-151.0,0.00019996,2]
[362266357,1748129447271,-58362.8802017,0.00019996,2]
[362266358,1748129447281,-4285.929785,0.00019996,2]
[362266359,1748129447291,-1929.7882712,0.00019996,2]
[362266360,1748129447300,-868.6867385,0.00019996,2]
[362266361,1748129447314,-263.66,0.00019999,2]
[362266362,1748129447324,-500.0,0.00019999,2]
[362266363,1748129447333,-500.0,0.00019999,2]
[362266364,1748129447344,-500.0,0.00019999,2]
[362266365,1748129447354,-500.0,0.00019999,2]
[362266366,1748129447366,-500.0,0.00019999,2]
[362266367,1748129447375,-500.0,0.00019999,2]
[362266368,1748129447385,-423.67,0.00019999,2]
[362266369,1748129447395,-193.9605506,0.0002,2]
[362266370,1748129447404,-344521.63438269,0.0002,2]
[362266371,1748129447415,-1159070.2486228,0.0002,2]
[362266372,1748129447811,-1858.412075,0.0001926,2]
[362266373,1748129447823,-952.7000005,0.0001926,2]
[362266374,1748129850464,477.29,0.00016767,2]
[362266375,1748129988857,156.49,0.00025545,120]
[362266376,1748130330123,-776.68935148,0.0001847,2]
[362266377,1748130407095,-223.31064852,0.0001847,2]
[362266378,1748130407116,-121.1064607,0.00018529,2]
[362266379,1748130428090,-93.1935393,0.00018529,2]
[362266380,1748130428116,-156.49,0.00018578,2]
[362266381,1748130428137,-477.29,0.00019031,2]
[362266382,1748130428156,-230.3323,0.00019105,2]
[362266383,1748130428177,-47.97428583,0.00019166,2]
[362266385,1748130632031,-150.0,0.00018399,7]
[362266386,1748130632041,-165.17,0.00019048,2]
[362266387,1748130632051,-177.3621,0.00019132,2]
[362266388,1748130632060,-1002.87746415,0.0001916,2]
[362266389,1748130632070,-151.0,0.00019166,2]
[362266390,1748130632079,-207.4,0.00019166,2]
[362266391,1748130632089,-152.925138,0.00019178,2]
[362266392,1748130632098,-420.0,0.00019178,2]
[362266393,1748130632108,-420.0,0.00019178,2]
[362266394,1748130632118,-420.0,0.00019178,2]
[362266395,1748130632127,-420.0,0.00019178,2]
[362266396,1748130632137,-420.0,0.00019178,2]
[362266397,1748130632146,-420.0,0.00019178,2]
[362266398,1748130632156,-420.0,0.00019178,2]
[362266399,1748130632165,-420.0,0.00019178,2]
[362266400,1748130632174,-276.78378169,0.00019178,2]
[362266401,1748130632184,-420.0,0.00019178,2]
[362266402,1748130632193,-420.0,0.00019178,2]
[362266403,1748130632203,-420.0,0.00019178,2]
[362266404,1748130632212,-420.0,0.00019178,2]
[362266405,1748130632223,-420.0,0.00019178,2]
[362266406,1748130632232,-420.0,0.00019178,2]
[362266407,1748130632242,-420.0,0.00019178,2]
[362266408,1748130632252,-420.0,0.00019178,2]
[362266409,1748130632261,-420.0,0.00019178,2]
[362266410,1748130632270,-420.0,0.00019178,2]
[362266411,1748130632280,-372.88393607,0.00019178,2]
[362266412,1748130632291,-420.0,0.00019178,2]
[362266413,1748130632300,-420.0,0.00019178,2]
[362266414,1748130632310,-293.92896784,0.00019178,2]
[362266415,1748130632319,-420.0,0.00019178,2]
[362266416,1748130632329,-420.0,0.00019178,2]
[362266417,1748130632339,-420.0,0.00019178,2]
[362266418,1748130632349,-888.83,0.00019178,2]
[362266419,1748130632358,-420.0,0.00019178,2]
[362266420,1748130632368,-420.0,0.00019178,2]
[362266421,1748130632378,-420.0,0.00019178,2]
[362266423,1748130632621,-836.73,0.00019178,2]
[362266424,1748130632631,-420.0,0.00019178,2]
[362266425,1748130632641,-420.0,0.00019178,2]
[362266426,1748130632650,-420.0,0.00019178,2]
[362266427,1748130632660,-420.0,0.00019178,2]
[362266428,1748130632669,-420.0,0.00019178,2]
[362266429,1748130632679,-420.0,0.00019178,2]
[362266431,1748130632688,-420.0,0.00019178,2]
[362266432,1748130632698,-531.64,0.00019178,2]
[362266433,1748130632707,-6841.12369352,0.00019178,2]
[362266434,1748130632728,-340.81682019,0.00019178,2]
[362266436,1748130632751,-950.36518585,0.00019178,2]
[362266437,1748130632777,349.53,0.00013699,2]
[362266449,1748130638453,-1476.61709751,0.00019178,2]
[362266450,1748130638616,-5336.5,0.00019178,2]
[362266451,1748130638629,-4858.71720293,0.00019178,2]
[362266452,1748130638639,-420.0,0.00019178,2]
[362266453,1748130638648,-420.0,0.00019178,2]
[362266454,1748130638658,-420.0,0.00019178,2]
[362266455,1748130638667,-420.0,0.00019178,2]
[362266456,1748130638676,-420.0,0.00019178,2]
[362266457,1748130638686,-420.0,0.00019178,2]
[362266458,1748130638695,-420.0,0.00019178,2]
[362266459,1748130638704,-443.68,0.00019178,2]
[362266460,1748130638713,-420.0,0.00019178,2]
[362266461,1748130638723,-420.0,0.00019178,2]
[362266462,1748130638732,-420.0,0.00019178,2]
[362266463,1748130638742,-269.634795,0.00019178,2]
[362266464,1748130638754,-612.0,0.00019178,2]
[362266465,1748130638764,-420.0,0.00019178,2]
[362266466,1748130638774,-420.0,0.00019178,2]
[362266467,1748130638784,-420.0,0.00019178,2]
[362266468,1748130638793,-420.0,0.00019178,2]
[362266470,1748130638803,-420.0,0.00019178,2]
[362266472,1748130638812,-420.0,0.00019178,2]
[362266474,1748130638821,-420.0,0.00019178,2]
[362266476,1748130638830,-420.0,0.00019178,2]
[362266478,1748130638839,-420.0,0.00019178,2]
[362266480,1748130638850,-557.89,0.00019178,2]
[362266482,1748130638859,-420.0,0.00019178,2]
[362266484,1748130638869,-420.0,0.00019178,2]
[362266486,1748130638878,-943.68,0.00019178,2]
[362266487,1748130638887,-420.0,0.00019178,2]
[362266488,1748130638896,-420.0,0.00019178,2]
[362266489,1748130638905,-420.0,0.00019178,2]
[362266490,1748130638914,-2108.84,0.00019178,2]
[362266491,1748130638923,-547.59,0.00019178,2]
[362266492,1748130638933,-943.22,0.00019178,2]
[362266493,1748130638943,-420.0,0.00019178,2]
[362266494,1748130638952,-420.0,0.00019178,2]
[362266495,1748130638961,-420.0,0.00019178,2]
[362266496,1748130638970,-420.0,0.00019178,2]
[362266497,1748130638979,-420.0,0.00019178,2]
[362266498,1748130638988,-1057.57,0.00019178,2]
[362266499,1748130638997,-464.22,0.00019178,2]
[362266500,1748130639006,-420.0,0.00019178,2]
[362266501,1748130639015,-420.0,0.00019205,2]
[362266502,1748130639024,-420.0,0.00019205,2]
[362266503,1748130639034,-420.0,0.00019205,2]
[362266504,1748130639043,-387.14,0.00019205,2]
[362266505,1748130639051,-888.83,0.00019205,2]
[362266506,1748130639060,-458.48,0.00019205,2]
[362266507,1748130639070,-836.73,0.00019205,2]
[362266508,1748130639079,-420.0,0.00019205,2]
[362266509,1748130639087,-420.0,0.00019205,2]
[362266510,1748130639097,-420.0,0.00019205,2]
[362266511,1748130639106,-531.64,0.00019205,2]
[362266512,1748130639115,-19804.14,0.00019205,2]
[362266513,1748130639124,-420.0,0.00019205,2]
[362266514,1748130639133,-420.0,0.00019205,2]
[362266515,1748130639142,-420.0,0.00019205,2]
[362266516,1748130639151,-223.58,0.00019205,2]
[362266517,1748130639161,-420.0,0.00019205,2]
[362266518,1748130639170,-612.0,0.00019205,2]
[362266519,1748130639179,-420.0,0.00019205,2]
[362266520,1748130639188,-420.0,0.00019205,2]
[362266521,1748130639197,-420.0,0.00019205,2]
[362266522,1748130639207,-420.0,0.00019205,2]
[362266523,1748130639216,-198.23,0.00019205,2]
[362266524,1748130639225,-420.0,0.00019205,2]
[362266525,1748130639235,-557.89,0.00019205,2]
[362266526,1748130639244,-420.0,0.00019205,2]
[362266527,1748130639253,-420.0,0.00019205,2]
[362266528,1748130639262,-943.68,0.00019205,2]
[362266529,1748130639272,-420.0,0.00019205,2]
[362266530,1748130639281,-2108.84,0.00019205,2]
[362266531,1748130639290,-547.59,0.00019205,2]
[362266532,1748130639300,-943.22,0.00019205,2]
[362266533,1748130639309,-420.0,0.00019205,2]
[362266534,1748130639318,-1057.57,0.00019205,2]
[362266535,1748130639327,-464.22,0.00019205,2]
[362266536,1748130639336,-420.0,0.00019205,2]
[362266537,1748130639345,-500.0,0.00019231,2]
[362266538,1748130639354,-420.0,0.00019232,2]
[362266539,1748130639363,-446.19,0.00019232,2]
[362266540,1748130639373,-420.0,0.00019232,2]
[362266541,1748130639382,-888.83,0.00019232,2]
[362266542,1748130639391,-836.73,0.00019232,2]
[362266543,1748130639399,-420.0,0.00019232,2]
[362266544,1748130639408,-420.0,0.00019232,2]
[362266545,1748130639417,-420.0,0.00019232,2]
[362266546,1748130639426,-531.64,0.00019232,2]
[362266547,1748130639435,-19804.14,0.00019232,2]
[362266548,1748130639444,-420.0,0.00019232,2]
[362266549,1748130639454,-420.0,0.00019232,2]
[362266550,1748130639466,-420.0,0.00019232,2]
[362266551,1748130639475,-420.0,0.00019232,2]
[362266552,1748130639484,-612.0,0.00019232,2]
[362266553,1748130639493,-420.0,0.00019232,2]
[362266554,1748130639504,-420.0,0.00019232,2]
[362266555,1748130639513,-420.0,0.00019232,2]
[362266556,1748130639522,-557.89,0.00019232,2]
[362266557,1748130639532,-420.0,0.00019232,2]
[362266558,1748130639544,-420.0,0.00019232,2]
[362266559,1748130639554,-943.68,0.00019232,2]
[362266560,1748130639563,-420.0,0.00019232,2]
[362266561,1748130639573,-2108.84,0.00019232,2]
[362266562,1748130639582,-547.59,0.00019232,2]
[362266563,1748130639592,-943.22,0.00019232,2]
[362266564,1748130639601,-420.0,0.00019232,2]
[362266565,1748130639610,-1057.57,0.00019232,2]
[362266566,1748130639619,-464.22,0.00019232,2]
[362266567,1748130639629,-420.0,0.00019232,2]
[362266568,1748130639639,-1002.87746407,0.00019242,2]
[362266569,1748130639649,-420.0,0.0001926,2]
[362266570,1748130639658,-125.51873932,0.0001926,2]
[362266571,1748130639879,-25.47126068,0.0001926,2]
[362266572,1748130639890,-888.83,0.0001926,2]
[362266573,1748130639899,-836.73,0.0001926,2]
[362266574,1748130639909,-512.08,0.0001926,2]
[362266575,1748130639919,-420.0,0.0001926,2]
[362266576,1748130639928,-420.0,0.0001926,2]
[362266577,1748130639938,-531.64,0.0001926,2]
[362266578,1748130639947,-481.00683732,0.0001926,2]
[362266586,1748130640212,-7093.73697257,0.0001926,2]
[362266587,1748130640226,-8909.75963783,0.0001926,2]
[362266588,1748130640425,-1516.22841458,0.0001926,2]
[362266589,1748130640437,-1803.4081377,0.0001926,2]
[362266590,1748130640446,-420.0,0.0001926,2]
[362266591,1748130640459,-420.0,0.0001926,2]
[362266592,1748130640468,-420.0,0.0001926,2]
[362266593,1748130640477,-420.0,0.0001926,2]
[362266594,1748130640486,-612.0,0.0001926,2]
[362266595,1748130640496,-420.0,0.0001926,2]
[362266596,1748130640506,-420.0,0.0001926,2]
[362266597,1748130640515,-420.0,0.0001926,2]
[362266598,1748130640525,-77.57897229,0.0001926,2]
[362266599,1748130640541,-480.31102771,0.0001926,2]
[362266600,1748130640551,-420.0,0.0001926,2]
[362266601,1748130640562,-420.0,0.0001926,2]
[362266602,1748130640571,-943.68,0.0001926,2]
[362266603,1748130640581,-420.0,0.0001926,2]
[362266604,1748130640590,-2108.84,0.0001926,2]
[362266605,1748130640599,-547.59,0.0001926,2]
[362266606,1748130640609,-943.22,0.0001926,2]
[362266607,1748130640618,-420.0,0.0001926,2]
[362266608,1748130640628,-1057.57,0.0001926,2]
[362266609,1748130640638,-464.22,0.0001926,2]
[362266610,1748130640647,-420.0,0.0001926,2]
[362266611,1748130640656,-515.84657799,0.00019273,2]
[362266612,1748130640666,-500.0,0.00019273,2]
[362266613,1748130640675,-358.94531462,0.00019287,2]
[362266614,1748130640684,-888.83,0.00019287,2]
[362266615,1748130640694,-836.73,0.00019287,2]
[362266616,1748130640703,-420.0,0.00019287,2]
[362266617,1748130640712,-420.0,0.00019287,2]
[362266618,1748130640721,-531.64,0.00019287,2]
[362266619,1748130640731,-19804.14,0.00019287,2]
[362266620,1748130640740,-420.0,0.00019287,2]
[362266621,1748130640750,-420.0,0.00019287,2]
[362266622,1748130640759,-420.0,0.00019287,2]
[362266623,1748130640769,-420.0,0.00019287,2]
[362266624,1748130640778,-612.0,0.00019287,2]
[362266625,1748130640787,-420.0,0.00019287,2]
[362266626,1748130640797,-381.62,0.00019287,2]
[362266627,1748130640806,-420.0,0.00019287,2]
[362266628,1748130640815,-557.89,0.00019287,2]
[362266629,1748130640825,-420.0,0.00019287,2]
[362266630,1748130640834,-336.74,0.00019287,2]
[362266631,1748130640844,-943.68,0.00019287,2]
[362266632,1748130640857,-420.0,0.00019287,2]
[362266633,1748130640867,-2108.84,0.00019287,2]
[362266634,1748130640876,-547.59,0.00019287,2]
[362266635,1748130640886,-943.22,0.00019287,2]
[362266636,1748130640896,-420.0,0.00019287,2]
[362266637,1748130640906,-1057.57,0.00019287,2]
[362266638,1748130640918,-464.22,0.00019287,2]
[362266639,1748130640928,-420.0,0.00019287,2]
[362266640,1748130640939,-172.35914449,0.00019314,2]
[362266641,1748130640949,-888.83,0.00019315,2]
[362266642,1748130640959,-836.73,0.00019315,2]
[362266643,1748130640969,-164.93,0.00019315,2]
[362266644,1748130640979,-420.0,0.00019315,2]
[362266645,1748130640989,-531.64,0.00019315,2]
[362266646,1748130640998,-19804.14,0.00019315,2]
[362266647,1748130641007,-420.0,0.00019315,2]
[362266648,1748130641016,-420.0,0.00019315,2]
[362266649,1748130641025,-420.0,0.00019315,2]
[362266650,1748130641035,-420.0,0.00019315,2]
[362266651,1748130641044,-612.0,0.00019315,2]
[362266652,1748130641053,-420.0,0.00019315,2]
[362266653,1748130641064,-420.0,0.00019315,2]
[362266654,1748130641074,-557.89,0.00019315,2]
[362266655,1748130641083,-420.0,0.00019315,2]
[362266656,1748130641093,-943.68,0.00019315,2]
[362266657,1748130641102,-420.0,0.00019315,2]
[362266658,1748130641112,-2108.84,0.00019315,2]
[362266659,1748130641122,-547.59,0.00019315,2]
[362266660,1748130641133,-943.22,0.00019315,2]
[362266661,1748130641144,-420.0,0.00019315,2]
[362266662,1748130641155,-1057.57,0.00019315,2]
[362266663,1748130641165,-464.22,0.00019315,2]
[362266664,1748130641175,-317.87,0.00019315,2]
[362266665,1748130641187,-1002.87746407,0.00019324,2]
[362266666,1748130641197,-500.0,0.00019341,2]
[362266667,1748130641207,-888.83,0.00019342,2]
[362266668,1748130641218,-836.73,0.00019342,2]
[362266669,1748130641227,-420.0,0.00019342,2]
[362266670,1748130641237,-531.64,0.00019342,2]
[362266671,1748130641247,-19804.14,0.00019342,2]
[362266672,1748130641256,-420.0,0.00019342,2]
[362266673,1748130641265,-420.0,0.00019342,2]
[362266674,1748130641276,-420.0,0.00019342,2]
[362266675,1748130641286,-420.0,0.00019342,2]
[362266676,1748130641296,-612.0,0.00019342,2]
[362266677,1748130641307,-420.0,0.00019342,2]
[362266678,1748130641318,-275.97,0.00019342,2]
[362266679,1748130641328,-557.89,0.00019342,2]
[362266680,1748130641337,-420.0,0.00019342,2]
[362266681,1748130641346,-943.68,0.00019342,2]
[362266682,1748130641356,-420.0,0.00019342,2]
[362266683,1748130641366,-2108.84,0.00019342,2]
[362266684,1748130641376,-547.59,0.00019342,2]
[362266685,1748130641387,-943.22,0.00019342,2]
[362266686,1748130641398,-420.0,0.00019342,2]
[362266687,1748130641410,-1057.57,0.00019342,2]
[362266688,1748130641420,-464.22,0.00019342,2]
[362266689,1748130641429,-888.83,0.00019369,2]
[362266690,1748130641438,-836.73,0.00019369,2]
[362266691,1748130641448,-420.0,0.00019369,2]
[362266692,1748130641461,-531.64,0.00019369,2]
[362266693,1748130641471,-19804.14,0.00019369,2]
[362266694,1748130641480,-420.0,0.00019369,2]
[362266695,1748130641490,-420.0,0.00019369,2]
[362266696,1748130641499,-194.56,0.00019369,2]
[362266697,1748130641508,-420.0,0.00019369,2]
[362266698,1748130641519,-612.0,0.00019369,2]
[362266699,1748130641529,-420.0,0.00019369,2]
[362266700,1748130641539,-557.89,0.00019369,2]
[362266701,1748130641549,-420.0,0.00019369,2]
[362266702,1748130641558,-943.68,0.00019369,2]
[362266703,1748130641567,-420.0,0.00019369,2]
[362266704,1748130641577,-2108.84,0.00019369,2]
[362266705,1748130641587,-547.59,0.00019369,2]
[362266706,1748130641597,-943.22,0.00019369,2]
[362266707,1748130641607,-420.0,0.00019369,2]
[362266708,1748130641617,-1057.57,0.00019369,2]
[362266709,1748130641626,-464.22,0.00019369,2]
[362266710,1748130641635,-500.0,0.00019373,2]
[362266711,1748130641645,-502.54862324,0.00019373,2]
[362266712,1748130641654,-563.81431601,0.00019373,2]
[362266713,1748130641663,-500.0,0.00019396,2]
[362266714,1748130641672,-888.83,0.00019397,2]
[362266715,1748130641681,-836.73,0.00019397,2]
[362266716,1748130641690,-420.0,0.00019397,2]
[362266717,1748130641700,-531.64,0.00019397,2]
[362266718,1748130641709,-19804.14,0.00019397,2]
[362266719,1748130641718,-420.0,0.00019397,2]
[362266720,1748130641727,-420.0,0.00019397,2]
[362266721,1748130641738,-420.0,0.00019397,2]
[362266722,1748130641748,-612.0,0.00019397,2]
[362266723,1748130641757,-420.0,0.00019397,2]
[362266724,1748130641767,-557.89,0.00019397,2]
[362266725,1748130641776,-348.19,0.00019397,2]
[362266726,1748130641786,-943.68,0.00019397,2]
[362266727,1748130641795,-420.0,0.00019397,2]
[362266728,1748130641805,-2108.84,0.00019397,2]
[362266729,1748130641814,-547.59,0.00019397,2]
[362266730,1748130641824,-943.22,0.00019397,2]
[362266731,1748130641834,-420.0,0.00019397,2]
[362266732,1748130641843,-1057.57,0.00019397,2]
[362266733,1748130641853,-464.22,0.00019397,2]
[362266734,1748130641862,-1002.87746407,0.00019407,2]
[362266735,1748130641872,-888.83,0.00019424,2]
[362266736,1748130641881,-836.73,0.00019424,2]
[362266737,1748130641890,-420.0,0.00019424,2]
[362266738,1748130641900,-531.64,0.00019424,2]
[362266739,1748130641910,-19804.14,0.00019424,2]
[362266740,1748130641919,-420.0,0.00019424,2]
[362266741,1748130641929,-420.0,0.00019424,2]
[362266742,1748130641939,-420.0,0.00019424,2]
[362266743,1748130641948,-612.0,0.00019424,2]
[362266744,1748130641960,-420.0,0.00019424,2]
[362266745,1748130641971,-557.89,0.00019424,2]
[362266746,1748130641980,-943.68,0.00019424,2]
[362266747,1748130641990,-420.0,0.00019424,2]
[362266748,1748130641999,-2108.84,0.00019424,2]
[362266749,1748130642009,-547.59,0.00019424,2]
[362266750,1748130642018,-943.22,0.00019424,2]
[362266751,1748130642027,-420.0,0.00019424,2]
[362266752,1748130642038,-1057.57,0.00019424,2]
[362266753,1748130642047,-464.22,0.00019424,2]
[362266754,1748130642056,-196.93143404,0.00019434,2]
[362266755,1748130642066,-888.83,0.00019452,2]
[362266756,1748130642076,-836.73,0.00019452,2]
[362266757,1748130642087,-538.03,0.00019452,2]
[362266758,1748130642096,-531.64,0.00019452,2]
[362266759,1748130642106,-19804.14,0.00019452,2]
[362266760,1748130642115,-420.0,0.00019452,2]
[362266761,1748130642340,-420.0,0.00019452,2]
[362266762,1748130642350,-420.0,0.00019452,2]
[362266763,1748130642359,-612.0,0.00019452,2]
[362266764,1748130642368,-325.32,0.00019452,2]
[362266765,1748130642377,-557.89,0.00019452,2]
[362266766,1748130642386,-943.68,0.00019452,2]
[362266767,1748130642395,-420.0,0.00019452,2]
[362266768,1748130642404,-2108.84,0.00019452,2]
[362266769,1748130642414,-547.59,0.00019452,2]
[362266770,1748130642423,-943.22,0.00019452,2]
[362266771,1748130642432,-420.0,0.00019452,2]
[362266772,1748130642441,-1057.57,0.00019452,2]
[362266773,1748130642450,-464.22,0.00019452,2]
[362266774,1748130642460,-500.0,0.00019472,2]
[362266775,1748130642471,-888.83,0.00019479,2]
[362266776,1748130642480,-836.73,0.00019479,2]
[362266777,1748130642490,-531.64,0.00019479,2]
[362266778,1748130642499,-19804.14,0.00019479,2]
[362266779,1748130642510,-420.0,0.00019479,2]
[362266780,1748130642519,-420.0,0.00019479,2]
[362266781,1748130642528,-158.38,0.00019479,2]
[362266782,1748130642537,-612.0,0.00019479,2]
[362266783,1748130642546,-557.89,0.00019479,2]
[362266784,1748130642556,-943.68,0.00019479,2]
[362266785,1748130642566,-420.0,0.00019479,2]
[362266786,1748130642575,-2108.84,0.00019479,2]
[362266787,1748130642584,-547.59,0.00019479,2]
[362266788,1748130642594,-943.22,0.00019479,2]
[362266789,1748130642603,-420.0,0.00019479,2]
[362266790,1748130642613,-1057.57,0.00019479,2]
[362266791,1748130642622,-464.22,0.00019479,2]
[362266792,1748130642631,-1002.87746407,0.00019489,2]
[362266793,1748130642641,-888.83,0.00019506,2]
[362266794,1748130642650,-836.73,0.00019506,2]
[362266795,1748130642660,-531.64,0.00019506,2]
[362266796,1748130642670,-19804.14,0.00019506,2]
[362266797,1748130642679,-420.0,0.00019506,2]
[362266798,1748130642688,-458.69,0.00019506,2]
[362266799,1748130642698,-612.0,0.00019506,2]
[362266800,1748130642708,-557.89,0.00019506,2]
[362266801,1748130642718,-943.68,0.00019506,2]
[362266802,1748130642727,-420.0,0.00019506,2]
[362266803,1748130642737,-2108.84,0.00019506,2]
[362266804,1748130642747,-547.59,0.00019506,2]
[362266805,1748130642763,-943.22,0.00019506,2]
[362266806,1748130642773,-420.0,0.00019506,2]
[362266807,1748130642782,-1057.57,0.00019506,2]
[362266808,1748130642792,-464.22,0.00019506,2]
[362266809,1748130642801,-888.83,0.00019534,2]
[362266810,1748130642811,-836.73,0.00019534,2]
[362266811,1748130642820,-531.64,0.00019534,2]
[362266812,1748130642829,-19804.14,0.00019534,2]
[362266813,1748130642838,-515.94,0.00019534,2]
[362266814,1748130642848,-612.0,0.00019534,2]
[362266815,1748130642858,-557.89,0.00019534,2]
[362266816,1748130642867,-943.68,0.00019534,2]
[362266817,1748130642876,-420.0,0.00019534,2]
[362266818,1748130642885,-2108.84,0.00019534,2]
[362266819,1748130642894,-547.59,0.00019534,2]
[362266820,1748130642903,-943.22,0.00019534,2]
[362266822,1748130642912,-420.0,0.00019534,2]
[362266824,1748130642922,-1057.57,0.00019534,2]
[362266825,1748130642932,-464.22,0.00019534,2]
[362266826,1748130642942,-888.83,0.00019561,2]
[362266827,1748130642951,-836.73,0.00019561,2]
[362266828,1748130642961,-531.64,0.00019561,2]
[362266829,1748130642970,-19804.14,0.00019561,2]
[362266830,1748130642979,-612.0,0.00019561,2]
[362266831,1748130642987,-557.89,0.00019561,2]
[362266832,1748130642997,-943.68,0.00019561,2]
[362266833,1748130643006,-420.0,0.00019561,2]
[362266834,1748130643015,-2108.84,0.00019561,2]
[362266835,1748130643025,-547.59,0.00019561,2]
[362266836,1748130643034,-943.22,0.00019561,2]
[362266837,1748130643046,-420.0,0.00019561,2]
[362266838,1748130643056,-1057.57,0.00019561,2]
[362266839,1748130643065,-464.22,0.00019561,2]
[362266840,1748130643075,-1002.87746407,0.00019571,2]
[362266841,1748130643084,-500.0,0.00019588,2]
[362266842,1748130643093,-888.83,0.00019589,2]
[362266843,1748130643103,-836.73,0.00019589,2]
[362266844,1748130643114,-531.64,0.00019589,2]
[362266845,1748130643125,-19804.14,0.00019589,2]
[362266846,1748130643135,-612.0,0.00019589,2]
[362266847,1748130643144,-557.89,0.00019589,2]
[362266848,1748130643154,-943.68,0.00019589,2]
[362266849,1748130643163,-420.0,0.00019589,2]
[362266850,1748130643173,-2108.84,0.00019589,2]
[362266851,1748130643182,-547.59,0.00019589,2]
[362266852,1748130643191,-943.22,0.00019589,2]
[362266853,1748130643201,-420.0,0.00019589,2]
[362266854,1748130643210,-1057.57,0.00019589,2]
[362266855,1748130643219,-464.22,0.00019589,2]
[362266856,1748130643228,-462.827106,0.00019599,2]
[362266857,1748130643238,-706.93,0.000196,2]
[362266858,1748130643248,-1000.0,0.000196,2]
[362266859,1748130643257,-888.83,0.00019616,2]
[362266860,1748130643266,-836.73,0.00019616,2]
[362266861,1748130643275,-531.64,0.00019616,2]
[362266862,1748130643284,-19804.14,0.00019616,2]
[362266863,1748130643294,-612.0,0.00019616,2]
[362266864,1748130643307,-557.89,0.00019616,2]
[362266865,1748130643316,-943.68,0.00019616,2]
[362266866,1748130643325,-420.0,0.00019616,2]
[362266867,1748130643335,-2108.84,0.00019616,2]
[362266868,1748130643344,-547.59,0.00019616,2]
[362266869,1748130643353,-943.22,0.00019616,2]
[362266870,1748130643362,-420.0,0.00019616,2]
[362266871,1748130643372,-1057.57,0.00019616,2]
[362266872,1748130643381,-464.22,0.00019616,2]